[Event "*** Titled Tuesday Blitz"]
[Site "Chess.com"]
[Date "2020.05.19"]
[Round "1"]
[White "Raja3401"]
[Black "KyronGriffith"]
[Result "1-0"]
[WhiteElo "2715"]
[BlackElo "2378"]
[TimeControl "180+1"]
[EndTime "12:07:25 PDT"]
[Termination "Raja3401 won by resignation"]

1. e4 {[%clk 0:03:00.9]} 1... c5 {[%clk 0:02:59.7]} 2. Nf3 {[%clk 0:03:00.8]}
2... d6 {[%clk 0:03:00.2]} 3. d4 {[%clk 0:03:00.8]} 3... cxd4 {[%clk 0:03:01.1]}
4. Nxd4 {[%clk 0:03:00.8]} 4... Nf6 {[%clk 0:03:01.6]} 5. Nc3 {[%clk 0:03:00.9]}
5... a6 {[%clk 0:03:02.2]} 6. Bg5 {[%clk 0:03:00]} 6... e6 {[%clk 0:03:02.2]} 7.
f4 {[%clk 0:02:58.4]} 7... Be7 {[%clk 0:03:02.7]} 8. Qf3 {[%clk 0:02:57.9]} 8...
Qc7 {[%clk 0:03:03.3]} 9. O-O-O {[%clk 0:02:57.9]} 9... Nbd7 {[%clk 0:03:03.4]}
10. g4 {[%clk 0:02:57.8]} 10... h6 {[%clk 0:03:02.1]} 11. Bh4 {[%clk 0:02:55]}
11... g5 {[%clk 0:03:01.1]} 12. fxg5 {[%clk 0:02:54.4]} 12... Ne5 {[%clk
0:03:01.4]} 13. Qe2 {[%clk 0:02:43.6]} 13... Nfxg4 {[%clk 0:02:57.6]} 14. Kb1
{[%clk 0:02:28.7]} 14... Bxg5 {[%clk 0:02:33.4]} 15. Bg3 {[%clk 0:02:18.2]}
15... Ne3 {[%clk 0:02:29.6]} 16. Re1 {[%clk 0:02:17.1]} 16... N3c4 {[%clk
0:02:03.4]} 17. Nb3 {[%clk 0:02:06.4]} 17... Bd7 {[%clk 0:01:56.5]} 18. h4
{[%clk 0:01:58]} 18... Be7 {[%clk 0:01:43]} 19. Bh3 {[%clk 0:01:45.4]} 19... Rc8
{[%clk 0:01:42.7]} 20. Nd1 {[%clk 0:01:37.7]} 20... Bb5 {[%clk 0:01:36.4]} 21.
Qf2 {[%clk 0:01:37.8]} 21... Rg8 {[%clk 0:01:28.3]} 22. Rhg1 {[%clk 0:01:36.8]}
22... Qc6 {[%clk 0:01:02.8]} 23. Nd4 {[%clk 0:01:25.2]} 23... Qb6 {[%clk
0:01:00.9]} 24. Bxe5 {[%clk 0:01:07.9]} 24... Rxg1 {[%clk 0:00:56.1]} 25. Rxg1
{[%clk 0:00:54.3]} 25... dxe5 {[%clk 0:00:55.1]} 26. Rg8+ {[%clk 0:00:52.9]}
26... Bf8 {[%clk 0:00:45.7]} 27. Nxe6 {[%clk 0:00:29.8]} 27... Qxf2 {[%clk
0:00:29.5]} 28. Rxf8+ {[%clk 0:00:28.8]} 28... Ke7 {[%clk 0:00:29]} 29. Nxf2
{[%clk 0:00:29.3]} 29... Rxf8 {[%clk 0:00:25.8]} 30. Nxf8 {[%clk 0:00:30.2]}
30... Kxf8 {[%clk 0:00:26.7]} 31. b3 {[%clk 0:00:29.8]} 31... Nd2+ {[%clk
0:00:21.6]} 32. Kb2 {[%clk 0:00:28.9]} 32... Nf3 {[%clk 0:00:22.5]} 33. h5
{[%clk 0:00:28.8]} 33... Bc6 {[%clk 0:00:20.4]} 34. c4 {[%clk 0:00:24.5]} 34...
Ke7 {[%clk 0:00:19.2]} 35. Kc3 {[%clk 0:00:23.9]} 35... b5 {[%clk 0:00:18.9]}
36. c5 {[%clk 0:00:20.5]} 36... Ng5 {[%clk 0:00:17.8]} 37. Bf5 {[%clk
0:00:19.6]} 37... Nf3 {[%clk 0:00:17.4]} 38. b4 {[%clk 0:00:19.7]} 38... Nd4
{[%clk 0:00:17.8]} 39. Bg4 {[%clk 0:00:18.6]} 39... Kf6 {[%clk 0:00:15.2]} 40.
Bd1 {[%clk 0:00:17.6]} 40... Kg5 {[%clk 0:00:15.3]} 41. Ng4 {[%clk 0:00:16.8]}
41... Bxe4 {[%clk 0:00:13.9]} 42. Nxe5 {[%clk 0:00:16.8]} 42... f5 {[%clk
0:00:13.7]} 43. Kxd4 {[%clk 0:00:16.3]} 1-0

[Event "*** Titled Tuesday Blitz"]
[Site "Chess.com"]
[Date "2020.05.19"]
[Round "1"]
[White "top_bu_tz"]
[Black "petrkostenko"]
[Result "0-1"]
[WhiteElo "2211"]
[BlackElo "2535"]
[TimeControl "180+1"]
[EndTime "12:07:25 PDT"]
[Termination "petrkostenko won by checkmate"]

1. e4 {[%clk 0:02:56.6]} 1... e6 {[%clk 0:02:59.3]} 2. d4 {[%clk 0:02:55.6]}
2... d5 {[%clk 0:02:57.2]} 3. Nd2 {[%clk 0:02:56.1]} 3... Nf6 {[%clk 0:02:56.5]}
4. e5 {[%clk 0:02:53.9]} 4... Nfd7 {[%clk 0:02:56.6]} 5. Bd3 {[%clk 0:02:54.4]}
5... c5 {[%clk 0:02:57]} 6. c3 {[%clk 0:02:55]} 6... Nc6 {[%clk 0:02:57.6]} 7.
Ne2 {[%clk 0:02:55]} 7... cxd4 {[%clk 0:02:58.3]} 8. cxd4 {[%clk 0:02:55.9]}
8... f6 {[%clk 0:02:59]} 9. exf6 {[%clk 0:02:56.6]} 9... Qxf6 {[%clk 0:02:59.4]}
10. Nf3 {[%clk 0:02:56.2]} 10... h6 {[%clk 0:02:58.8]} 11. O-O {[%clk
0:02:55.7]} 11... Bd6 {[%clk 0:02:58.4]} 12. h3 {[%clk 0:02:54.4]} 12... O-O
{[%clk 0:02:57.6]} 13. Bb1 {[%clk 0:02:53.9]} 13... Rf7 {[%clk 0:02:55.1]} 14.
a3 {[%clk 0:02:37.3]} 14... Nf8 {[%clk 0:02:54.3]} 15. Ng3 {[%clk 0:02:17.7]}
15... Bd7 {[%clk 0:02:53.9]} 16. b4 {[%clk 0:01:54.1]} 16... Be8 {[%clk
0:02:42.1]} 17. Nh5 {[%clk 0:01:34.5]} 17... Qd8 {[%clk 0:02:35.3]} 18. Qd3
{[%clk 0:01:30.4]} 18... Rc8 {[%clk 0:02:19.4]} 19. Bd2 {[%clk 0:01:14]} 19...
a5 {[%clk 0:02:07.9]} 20. b5 {[%clk 0:01:12.2]} 20... Rxf3 {[%clk 0:02:07.8]}
21. Qxf3 {[%clk 0:01:08.8]} 21... Nxd4 {[%clk 0:01:59.7]} 22. Qg4 {[%clk
0:00:40.9]} 22... Bxh5 {[%clk 0:01:59.1]} 23. Qxh5 {[%clk 0:00:27.7]} 23... Qf6
{[%clk 0:01:46.1]} 24. Bd3 {[%clk 0:00:20.4]} 24... Nb3 {[%clk 0:01:34.7]} 25.
Rad1 {[%clk 0:00:18.5]} 25... Nxd2 {[%clk 0:01:34.6]} 26. Rxd2 {[%clk
0:00:19.4]} 26... Qf4 {[%clk 0:01:30.6]} 27. Rfd1 {[%clk 0:00:13.2]} 27... Qh2+
{[%clk 0:01:30.4]} 28. Kf1 {[%clk 0:00:13.8]} 28... Bxa3 {[%clk 0:01:24.5]} 29.
Qf3 {[%clk 0:00:11.7]} 29... Bb4 {[%clk 0:01:22.1]} 30. Rc2 {[%clk 0:00:11.2]}
30... Rxc2 {[%clk 0:01:21]} 31. Bxc2 {[%clk 0:00:12.1]} 31... b6 {[%clk
0:01:06.2]} 32. Rc1 {[%clk 0:00:11.5]} 32... Bc5 {[%clk 0:01:05.7]} 33. Rd1
{[%clk 0:00:11.2]} 33... Qe5 {[%clk 0:00:39]} 34. Qd3 {[%clk 0:00:10.4]} 34...
Qf6 {[%clk 0:00:36.5]} 35. Rd2 {[%clk 0:00:09.4]} 35... Qa1+ {[%clk 0:00:33.5]}
36. Rd1 {[%clk 0:00:09.4]} 36... Qf6 {[%clk 0:00:31.2]} 37. Rd2 {[%clk
0:00:09.5]} 37... Nd7 {[%clk 0:00:31]} 38. Re2 {[%clk 0:00:09.7]} 38... Nf8
{[%clk 0:00:21.9]} 39. Re1 {[%clk 0:00:09]} 39... Qxf2# {[%clk 0:00:20.8]} 0-1

[Event "*** Titled Tuesday Blitz"]
[Site "Chess.com"]
[Date "2020.05.19"]
[Round "1"]
[White "konradrutkowski"]
[Black "olksuna"]
[Result "0-1"]
[WhiteElo "2286"]
[BlackElo "2579"]
[TimeControl "180+1"]
[EndTime "12:07:26 PDT"]
[Termination "olksuna won on time"]

1. e4 {[%clk 0:03:00.9]} 1... c5 {[%clk 0:02:59.8]} 2. Nf3 {[%clk 0:03:00.2]}
2... Nc6 {[%clk 0:03:00.4]} 3. Bb5 {[%clk 0:02:57.4]} 3... g6 {[%clk 0:03:00.4]}
4. O-O {[%clk 0:02:54.1]} 4... Bg7 {[%clk 0:03:00.1]} 5. Re1 {[%clk 0:02:52.8]}
5... e5 {[%clk 0:03:00.3]} 6. c3 {[%clk 0:02:45.7]} 6... Nge7 {[%clk 0:02:57.9]}
7. d4 {[%clk 0:02:31.5]} 7... cxd4 {[%clk 0:02:55]} 8. cxd4 {[%clk 0:02:32.4]}
8... Nxd4 {[%clk 0:02:55.6]} 9. Nxd4 {[%clk 0:02:29]} 9... exd4 {[%clk
0:02:56.5]} 10. e5 {[%clk 0:02:13.3]} 10... O-O {[%clk 0:02:51]} 11. Qxd4 {[%clk
0:02:10.1]} 11... d5 {[%clk 0:02:47.1]} 12. Bf4 {[%clk 0:02:04.2]} 12... a6
{[%clk 0:02:44.1]} 13. Ba4 {[%clk 0:02:02.5]} 13... Be6 {[%clk 0:02:31.1]} 14.
Nc3 {[%clk 0:01:55.9]} 14... Nf5 {[%clk 0:02:31.2]} 15. Qd2 {[%clk 0:01:55.5]}
15... Qa5 {[%clk 0:02:21]} 16. Bb3 {[%clk 0:01:46.7]} 16... Rfd8 {[%clk
0:02:10.2]} 17. Bg5 {[%clk 0:01:41.5]} 17... Rd7 {[%clk 0:02:05.8]} 18. Rad1
{[%clk 0:01:18.2]} 18... d4 {[%clk 0:01:35.9]} 19. Bxe6 {[%clk 0:01:14.3]} 19...
fxe6 {[%clk 0:01:33.6]} 20. g4 {[%clk 0:01:04.3]} 20... Ne7 {[%clk 0:00:49.5]}
21. Bxe7 {[%clk 0:00:48]} 21... Rxe7 {[%clk 0:00:50.4]} 22. Qxd4 {[%clk
0:00:47.7]} 22... Rf8 {[%clk 0:00:49.7]} 23. f4 {[%clk 0:00:40.2]} 23... Ref7
{[%clk 0:00:44.8]} 24. Re4 {[%clk 0:00:32.2]} 24... g5 {[%clk 0:00:37.2]} 25.
Rf1 {[%clk 0:00:16.3]} 25... gxf4 {[%clk 0:00:27.3]} 26. Rf2 {[%clk 0:00:16.2]}
26... f3 {[%clk 0:00:25.9]} 27. Qe3 {[%clk 0:00:13.2]} 27... Qd8 {[%clk
0:00:18.1]} 28. Rd4 {[%clk 0:00:10.9]} 28... Qh4 {[%clk 0:00:13.6]} 29. Qd2
{[%clk 0:00:04]} 29... Kh8 {[%clk 0:00:11.8]} 30. Qd3 {[%clk 0:00:04.3]} 30...
Rf4 {[%clk 0:00:11.3]} 31. Rxf4 {[%clk 0:00:03.7]} 31... Rxf4 {[%clk 0:00:12.2]}
32. Rxf3 {[%clk 0:00:03.7]} 32... Qxg4+ {[%clk 0:00:10.6]} 33. Rg3 {[%clk
0:00:04.2]} 33... Qf5 {[%clk 0:00:06.2]} 34. Qd8+ {[%clk 0:00:03.4]} 34... Qf8
{[%clk 0:00:05.8]} 0-1

[Event "*** Titled Tuesday Blitz"]
[Site "Chess.com"]
[Date "2020.05.19"]
[Round "1"]
[White "Andreikka"]
[Black "El_ultimo_Pablo"]
[Result "1-0"]
[WhiteElo "2973"]
[BlackElo "2458"]
[TimeControl "180+1"]
[EndTime "12:07:29 PDT"]
[Termination "Andreikka won by resignation"]

1. c4 {[%clk 0:03:00.6]} 1... Nf6 {[%clk 0:02:59.7]} 2. Nc3 {[%clk 0:02:53.2]}
2... e6 {[%clk 0:02:59.7]} 3. e4 {[%clk 0:02:53]} 3... d5 {[%clk 0:03:00]} 4.
cxd5 {[%clk 0:02:53.5]} 4... exd5 {[%clk 0:03:00.1]} 5. e5 {[%clk 0:02:54.2]}
5... Ne4 {[%clk 0:03:00.2]} 6. Nf3 {[%clk 0:02:54.8]} 6... Nc6 {[%clk
0:02:29.6]} 7. d4 {[%clk 0:02:53.7]} 7... Bg4 {[%clk 0:02:24.8]} 8. h3 {[%clk
0:02:50.9]} 8... Bh5 {[%clk 0:02:24.5]} 9. Be3 {[%clk 0:02:46.9]} 9... Bb4
{[%clk 0:02:19.6]} 10. Qc2 {[%clk 0:02:41]} 10... O-O {[%clk 0:02:16.1]} 11. Bd3
{[%clk 0:02:40.2]} 11... Bg6 {[%clk 0:02:06.3]} 12. O-O {[%clk 0:02:34.4]} 12...
Nxc3 {[%clk 0:02:00.5]} 13. Bxg6 {[%clk 0:02:27.3]} 13... Ne2+ {[%clk
0:01:43.6]} 14. Qxe2 {[%clk 0:02:26.1]} 14... hxg6 {[%clk 0:01:44.2]} 15. Rac1
{[%clk 0:02:22.5]} 15... Be7 {[%clk 0:01:33.8]} 16. Rc3 {[%clk 0:01:48.8]} 16...
Qd7 {[%clk 0:01:30.7]} 17. Rfc1 {[%clk 0:01:48]} 17... Rfc8 {[%clk 0:01:30.1]}
18. a3 {[%clk 0:01:46]} 18... a5 {[%clk 0:01:23]} 19. Qb5 {[%clk 0:01:32.4]}
19... Rab8 {[%clk 0:01:22.8]} 20. Ne1 {[%clk 0:01:11.9]} 20... Rd8 {[%clk
0:01:14.6]} 21. Nd3 {[%clk 0:01:08.4]} 21... Qf5 {[%clk 0:01:03.1]} 22. Nf4
{[%clk 0:01:01.1]} 22... Qd7 {[%clk 0:01:02.8]} 23. Rd1 {[%clk 0:00:39.9]} 23...
Kh7 {[%clk 0:00:46.4]} 24. Qd3 {[%clk 0:00:35.1]} 24... Qe8 {[%clk 0:00:35.8]}
25. Rb3 {[%clk 0:00:32.3]} 25... Na7 {[%clk 0:00:27.7]} 26. Qc2 {[%clk
0:00:26.1]} 26... c6 {[%clk 0:00:26.4]} 27. a4 {[%clk 0:00:25.8]} 27... Nc8
{[%clk 0:00:23.3]} 28. Bd2 {[%clk 0:00:26.3]} 28... b6 {[%clk 0:00:19.7]} 29.
Be3 {[%clk 0:00:25.4]} 29... Kg8 {[%clk 0:00:16.4]} 30. g3 {[%clk 0:00:25.1]}
30... Bb4 {[%clk 0:00:16.3]} 31. h4 {[%clk 0:00:24.4]} 31... Ne7 {[%clk
0:00:15]} 32. Bd2 {[%clk 0:00:18.5]} 32... Bxd2 {[%clk 0:00:13.9]} 33. Qxd2
{[%clk 0:00:18.8]} 33... Nf5 {[%clk 0:00:14.8]} 34. Rc3 {[%clk 0:00:16.5]} 34...
Rbc8 {[%clk 0:00:13.9]} 35. Rdc1 {[%clk 0:00:16.7]} 35... Rd7 {[%clk 0:00:13.2]}
36. Rxc6 {[%clk 0:00:15.7]} 36... Rxc6 {[%clk 0:00:13]} 37. Rxc6 {[%clk
0:00:16.3]} 37... Rb7 {[%clk 0:00:13.4]} 38. Qc3 {[%clk 0:00:15.2]} 38... Qd7
{[%clk 0:00:13.1]} 39. e6 {[%clk 0:00:14.4]} 39... fxe6 {[%clk 0:00:11.6]} 40.
Nxg6 {[%clk 0:00:15]} 40... Kh7 {[%clk 0:00:07.5]} 41. Nf8+ {[%clk 0:00:14.8]}
1-0

[Event "*** Titled Tuesday Blitz"]
[Site "Chess.com"]
[Date "2020.05.19"]
[Round "1"]
[White "FrankieJay"]
[Black "Zkid"]
[Result "0-1"]
[WhiteElo "2416"]
[BlackElo "2806"]
[TimeControl "180+1"]
[EndTime "12:07:29 PDT"]
[Termination "Zkid won by resignation"]

1. e4 {[%clk 0:03:00.9]} 1... e6 {[%clk 0:02:58.8]} 2. d4 {[%clk 0:03:00.4]}
2... d5 {[%clk 0:02:56.3]} 3. Nc3 {[%clk 0:02:59.2]} 3... Bb4 {[%clk 0:02:56.1]}
4. e5 {[%clk 0:02:58.5]} 4... c5 {[%clk 0:02:56.3]} 5. a3 {[%clk 0:02:58.8]}
5... Bxc3+ {[%clk 0:02:56.9]} 6. bxc3 {[%clk 0:02:59.7]} 6... Qa5 {[%clk
0:02:56.5]} 7. Bd2 {[%clk 0:02:57.2]} 7... Qa4 {[%clk 0:02:56.8]} 8. Qg4 {[%clk
0:02:56.5]} 8... Kf8 {[%clk 0:02:57]} 9. Nf3 {[%clk 0:02:38.8]} 9... Qxc2 {[%clk
0:02:55.1]} 10. Be2 {[%clk 0:02:34.7]} 10... Qg6 {[%clk 0:02:33.5]} 11. Qf4
{[%clk 0:02:28.8]} 11... Qxg2 {[%clk 0:02:23.7]} 12. Rg1 {[%clk 0:02:28.7]}
12... Qh3 {[%clk 0:02:24.1]} 13. Qg5 {[%clk 0:02:13.3]} 13... g6 {[%clk
0:02:11.6]} 14. Qd8+ {[%clk 0:02:08.7]} 14... Kg7 {[%clk 0:02:11.7]} 15. Qxc8
{[%clk 0:02:05.8]} 15... Ne7 {[%clk 0:02:11.6]} 16. Qxc5 {[%clk 0:01:51.5]}
16... Nbc6 {[%clk 0:02:09.6]} 17. Qb5 {[%clk 0:01:37.3]} 17... Rhc8 {[%clk
0:01:55.1]} 18. Rg3 {[%clk 0:01:22.5]} 18... Qf5 {[%clk 0:01:51.7]} 19. Qd3
{[%clk 0:01:21]} 19... Na5 {[%clk 0:01:49.5]} 20. Rb1 {[%clk 0:01:14]} 20... a6
{[%clk 0:01:46]} 21. Bg5 {[%clk 0:00:54.9]} 21... Qxd3 {[%clk 0:01:38.5]} 22.
Bxd3 {[%clk 0:00:54.5]} 22... Rxc3 {[%clk 0:01:38.8]} 23. Kd2 {[%clk 0:00:35]}
23... Rc7 {[%clk 0:01:38.6]} 24. Bf6+ {[%clk 0:00:33.1]} 24... Kf8 {[%clk
0:01:35.7]} 25. Ng5 {[%clk 0:00:28.6]} 25... h6 {[%clk 0:01:33.6]} 26. Nf3
{[%clk 0:00:20.5]} 26... b5 {[%clk 0:01:32.1]} 27. Rh3 {[%clk 0:00:20.5]} 27...
Ng8 {[%clk 0:01:25.8]} 28. Rg1 {[%clk 0:00:17.2]} 28... Rac8 {[%clk 0:01:21.9]}
29. Rhg3 {[%clk 0:00:14.9]} 29... Nb3+ {[%clk 0:01:09.6]} 30. Ke2 {[%clk
0:00:14.5]} 30... Nc1+ {[%clk 0:01:03.9]} 31. Rxc1 {[%clk 0:00:10.4]} 31... Rxc1
{[%clk 0:01:03.8]} 32. h4 {[%clk 0:00:10.3]} 32... Ra1 {[%clk 0:00:51.3]} 33. h5
{[%clk 0:00:08.1]} 33... g5 {[%clk 0:00:49.7]} 34. Nxg5 {[%clk 0:00:04.8]} 34...
hxg5 {[%clk 0:00:42.6]} 35. Rxg5 {[%clk 0:00:05.7]} 35... Nxf6 {[%clk
0:00:36.4]} 36. exf6 {[%clk 0:00:05.8]} 36... Rh1 {[%clk 0:00:36.9]} 37. Bh7
{[%clk 0:00:05.1]} 37... Ke8 {[%clk 0:00:37.2]} 38. Rg8+ {[%clk 0:00:04.8]}
38... Kd7 {[%clk 0:00:37.5]} 39. Rxc8 {[%clk 0:00:04.2]} 39... Kxc8 {[%clk
0:00:37.1]} 40. Bg6 {[%clk 0:00:05.1]} 40... Kd7 {[%clk 0:00:28]} 41. Bxf7
{[%clk 0:00:05.3]} 41... a5 {[%clk 0:00:26.9]} 42. f4 {[%clk 0:00:03.4]} 42...
b4 {[%clk 0:00:24.8]} 43. axb4 {[%clk 0:00:04.3]} 43... axb4 {[%clk 0:00:25.4]}
44. f5 {[%clk 0:00:04.9]} 44... exf5 {[%clk 0:00:25.5]} 45. Bxd5 {[%clk
0:00:04.9]} 45... Rxh5 {[%clk 0:00:25.3]} 46. Ke3 {[%clk 0:00:05.4]} 46... Rh4
{[%clk 0:00:24.5]} 47. Bc4 {[%clk 0:00:02.9]} 47... Ke8 {[%clk 0:00:21.8]} 48.
f7+ {[%clk 0:00:02.3]} 48... Ke7 {[%clk 0:00:21.7]} 49. Kf3 {[%clk 0:00:02.8]}
49... Rxd4 {[%clk 0:00:20.9]} 0-1

[Event "*** Titled Tuesday Blitz"]
[Site "Chess.com"]
[Date "2020.05.19"]
[Round "1"]
[White "larisakalinina"]
[Black "sommerpower"]
[Result "1-0"]
[WhiteElo "2028"]
[BlackElo "2465"]
[TimeControl "180+1"]
[EndTime "12:07:29 PDT"]
[Termination "larisakalinina won by checkmate"]

1. e4 {[%clk 0:03:00.6]} 1... c5 {[%clk 0:02:59.3]} 2. Nf3 {[%clk 0:03:00.7]}
2... e6 {[%clk 0:02:59.1]} 3. d4 {[%clk 0:03:00.8]} 3... cxd4 {[%clk 0:03:00]}
4. Nxd4 {[%clk 0:03:00.6]} 4... Nc6 {[%clk 0:03:00.1]} 5. Nc3 {[%clk 0:03:00.1]}
5... Qc7 {[%clk 0:02:59.6]} 6. f4 {[%clk 0:02:56]} 6... a6 {[%clk 0:02:58.5]} 7.
Nf3 {[%clk 0:02:54.8]} 7... Bc5 {[%clk 0:02:56.2]} 8. Bd3 {[%clk 0:02:53]} 8...
d6 {[%clk 0:02:53.9]} 9. Qe2 {[%clk 0:02:52.9]} 9... Nf6 {[%clk 0:02:52.4]} 10.
Be3 {[%clk 0:02:47.8]} 10... Bxe3 {[%clk 0:02:43.5]} 11. Qxe3 {[%clk 0:02:46.7]}
11... O-O {[%clk 0:02:41.9]} 12. h3 {[%clk 0:02:35]} 12... e5 {[%clk 0:02:36.1]}
13. f5 {[%clk 0:02:29.8]} 13... d5 {[%clk 0:02:10.5]} 14. exd5 {[%clk
0:02:11.2]} 14... Nb4 {[%clk 0:01:57.1]} 15. O-O {[%clk 0:02:07.1]} 15... Nxd3
{[%clk 0:00:56.9]} 16. Qxd3 {[%clk 0:02:05.2]} 16... Qb6+ {[%clk 0:00:55.5]} 17.
Kh2 {[%clk 0:02:02.9]} 17... Qxb2 {[%clk 0:00:55.3]} 18. Nxe5 {[%clk 0:01:50.2]}
18... Rd8 {[%clk 0:00:50]} 19. d6 {[%clk 0:01:33.6]} 19... Qa3 {[%clk
0:00:37.1]} 20. Rad1 {[%clk 0:01:21.7]} 20... b5 {[%clk 0:00:30.6]} 21. Ne4
{[%clk 0:01:14.3]} 21... Qxd3 {[%clk 0:00:27.8]} 22. cxd3 {[%clk 0:01:05.2]}
22... Bb7 {[%clk 0:00:18]} 23. Rfe1 {[%clk 0:01:01.4]} 23... Bd5 {[%clk
0:00:14.1]} 24. a3 {[%clk 0:00:58.8]} 24... Rac8 {[%clk 0:00:12.7]} 25. Rc1
{[%clk 0:00:46.7]} 25... Kf8 {[%clk 0:00:11.7]} 26. Rxc8 {[%clk 0:00:40.9]}
26... Rxc8 {[%clk 0:00:11.3]} 27. Nxf6 {[%clk 0:00:38]} 27... gxf6 {[%clk
0:00:12.2]} 28. Nd7+ {[%clk 0:00:36.2]} 28... Kg7 {[%clk 0:00:10.3]} 29. Nb6
{[%clk 0:00:36.5]} 29... Rd8 {[%clk 0:00:08.4]} 30. Nxd5 {[%clk 0:00:36.6]}
30... Rxd6 {[%clk 0:00:09.3]} 31. Nf4 {[%clk 0:00:32.8]} 31... Rd4 {[%clk
0:00:09.6]} 32. g3 {[%clk 0:00:31.9]} 32... Ra4 {[%clk 0:00:09.3]} 33. Re8
{[%clk 0:00:19.9]} 33... Rxa3 {[%clk 0:00:07.9]} 34. Nh5+ {[%clk 0:00:20.1]}
34... Kh6 {[%clk 0:00:07.6]} 35. Nxf6 {[%clk 0:00:20]} 35... b4 {[%clk
0:00:07.6]} 36. Rg8 {[%clk 0:00:13.3]} 36... Ra2+ {[%clk 0:00:05.8]} 37. Kg1
{[%clk 0:00:12.1]} 37... b3 {[%clk 0:00:06.4]} 38. g4 {[%clk 0:00:11.5]} 38...
Ra1+ {[%clk 0:00:06.3]} 39. Kf2 {[%clk 0:00:10.4]} 39... Ra2+ {[%clk 0:00:06.7]}
40. Kf3 {[%clk 0:00:08.1]} 40... b2 {[%clk 0:00:06.3]} 41. g5# {[%clk
0:00:08.3]} 1-0

[Event "*** Titled Tuesday Blitz"]
[Site "Chess.com"]
[Date "2020.05.19"]
[Round "1"]
[White "tgpgoat"]
[Black "Tolya2"]
[Result "1/2-1/2"]
[WhiteElo "2051"]
[BlackElo "2476"]
[TimeControl "180+1"]
[EndTime "12:07:32 PDT"]
[Termination "Game drawn by repetition"]

1. Nf3 {[%clk 0:03:00.7]} 1... Nf6 {[%clk 0:02:58.6]} 2. d4 {[%clk 0:03:00.7]}
2... d5 {[%clk 0:02:57.9]} 3. c4 {[%clk 0:03:00.3]} 3... dxc4 {[%clk 0:02:58]}
4. e3 {[%clk 0:02:58.2]} 4... e6 {[%clk 0:02:57]} 5. Bxc4 {[%clk 0:02:57.4]}
5... c5 {[%clk 0:02:57.9]} 6. Nc3 {[%clk 0:02:54.7]} 6... a6 {[%clk 0:02:58.3]}
7. O-O {[%clk 0:02:53.9]} 7... b5 {[%clk 0:02:58.2]} 8. Bb3 {[%clk 0:02:52.7]}
8... Bb7 {[%clk 0:02:58]} 9. dxc5 {[%clk 0:02:52]} 9... Nbd7 {[%clk 0:02:55.8]}
10. Nd4 {[%clk 0:02:47.2]} 10... Nxc5 {[%clk 0:02:53.5]} 11. Bc2 {[%clk
0:02:45.7]} 11... Be7 {[%clk 0:02:52.2]} 12. Qe2 {[%clk 0:02:44.9]} 12... O-O
{[%clk 0:02:50.9]} 13. Rd1 {[%clk 0:02:41.1]} 13... Qc7 {[%clk 0:02:47.7]} 14.
b4 {[%clk 0:02:38.1]} 14... Ncd7 {[%clk 0:02:45.9]} 15. Bb2 {[%clk 0:02:18.1]}
15... Nb6 {[%clk 0:02:37.7]} 16. a3 {[%clk 0:02:13.4]} 16... Nc4 {[%clk
0:02:34.4]} 17. Bd3 {[%clk 0:02:14]} 17... Nxb2 {[%clk 0:02:31.9]} 18. Qxb2
{[%clk 0:02:14.9]} 18... Rfc8 {[%clk 0:02:30.3]} 19. Rac1 {[%clk 0:02:14.3]}
19... Qe5 {[%clk 0:02:24.8]} 20. Nce2 {[%clk 0:02:10.3]} 20... h6 {[%clk
0:02:21.4]} 21. Rxc8+ {[%clk 0:02:08.9]} 21... Rxc8 {[%clk 0:02:20]} 22. Rc1
{[%clk 0:02:08.5]} 22... Rxc1+ {[%clk 0:01:58.3]} 23. Qxc1 {[%clk 0:02:09.4]}
23... Bd6 {[%clk 0:01:57.1]} 24. Ng3 {[%clk 0:02:06.9]} 24... g6 {[%clk
0:01:53.8]} 25. Be2 {[%clk 0:02:00.8]} 25... Kg7 {[%clk 0:01:48.5]} 26. Bf3
{[%clk 0:01:54.2]} 26... Nd5 {[%clk 0:01:44.9]} 27. Qc2 {[%clk 0:01:26.5]} 27...
h5 {[%clk 0:01:43.4]} 28. Nf1 {[%clk 0:01:23.8]} 28... Bb8 {[%clk 0:01:30.8]}
29. Nc6 {[%clk 0:01:20.7]} 29... Bxc6 {[%clk 0:01:26.5]} 30. Qxc6 {[%clk
0:01:21.6]} 30... Qd6 {[%clk 0:01:20.1]} 31. Qxd6 {[%clk 0:01:18.4]} 31... Bxd6
{[%clk 0:01:18.8]} 32. Nd2 {[%clk 0:01:17]} 32... Kf8 {[%clk 0:01:11.9]} 33. Kf1
{[%clk 0:01:16.6]} 33... Ke7 {[%clk 0:01:10]} 34. Ke2 {[%clk 0:01:16.6]} 34...
Nc7 {[%clk 0:01:04.6]} 35. h3 {[%clk 0:01:15.3]} 35... f5 {[%clk 0:01:03.2]} 36.
Kd3 {[%clk 0:01:15.1]} 36... e5 {[%clk 0:01:00.9]} 37. Bb7 {[%clk 0:01:14.6]}
37... Ke6 {[%clk 0:00:56.1]} 38. Kc3 {[%clk 0:01:13.3]} 38... e4 {[%clk
0:00:55.4]} 39. Kb3 {[%clk 0:01:11.2]} 39... Bh2 {[%clk 0:00:53.3]} 40. f3
{[%clk 0:01:05.2]} 40... exf3 {[%clk 0:00:50.7]} 41. Bxf3 {[%clk 0:01:06.1]}
41... Bg1 {[%clk 0:00:48]} 42. e4 {[%clk 0:01:05.9]} 42... f4 {[%clk 0:00:44.2]}
43. a4 {[%clk 0:01:05.3]} 43... g5 {[%clk 0:00:39.2]} 44. axb5 {[%clk
0:01:04.2]} 44... Nxb5 {[%clk 0:00:37.2]} 45. Nb1 {[%clk 0:01:03.9]} 45... Ke5
{[%clk 0:00:31.5]} 46. Bxh5 {[%clk 0:01:00.6]} 46... Kxe4 {[%clk 0:00:31.4]} 47.
Bf3+ {[%clk 0:01:00.2]} 47... Kd3 {[%clk 0:00:27.7]} 48. Ka4 {[%clk 0:00:55]}
48... Bb6 {[%clk 0:00:22.2]} 49. Na3 {[%clk 0:00:48.6]} 49... Nxa3 {[%clk
0:00:20]} 50. Kxa3 {[%clk 0:00:48.5]} 50... Kc3 {[%clk 0:00:19.7]} 51. Bb7
{[%clk 0:00:46.8]} 51... a5 {[%clk 0:00:19.1]} 52. bxa5 {[%clk 0:00:46.8]} 52...
Bxa5 {[%clk 0:00:18.6]} 53. Bf3 {[%clk 0:00:47.1]} 53... Kd4 {[%clk 0:00:18]}
54. Kb3 {[%clk 0:00:47]} 54... Bc7 {[%clk 0:00:17.5]} 55. Kc2 {[%clk 0:00:46.7]}
55... Ke3 {[%clk 0:00:17.6]} 56. Kd1 {[%clk 0:00:46.2]} 56... Bd6 {[%clk
0:00:15.9]} 57. Ke1 {[%clk 0:00:46.3]} 57... Bb4+ {[%clk 0:00:14.9]} 58. Kf1
{[%clk 0:00:46.3]} 58... Be7 {[%clk 0:00:15.8]} 59. Ke1 {[%clk 0:00:46.6]} 59...
Bb4+ {[%clk 0:00:15.6]} 60. Kf1 {[%clk 0:00:47]} 60... Be7 {[%clk 0:00:15.7]}
61. Ke1 {[%clk 0:00:47.5]} 61... Bb4+ {[%clk 0:00:15.8]} 1/2-1/2